Cogmind - Beta 12 @@@ ROGUE MODE // 2023.06.03 @ 19:21:21 Player: art-hropod Result: Destroyed by G-47 Trooper with Particle Gun Performance ------------- Evolutions (2) 1000 Regions Visited (3) 600 Robots Destroyed (38) 190 Value Destroyed (974) 974 Prototype IDs (0) 0 Alien Tech Used (0) 0 Bonus (2) 2 TOTAL SCORE: 2766 Bonus ------- High Alert Combat Kills 2 Cogmind --------- Core Integrity 0/550 Matter 300/300 Energy 100/100 System Corruption 0% Temperature Cool (18) Movement Core (200) Ox3 Location -8/Materials Parts ------- > --- POWER (1) -------- (None) > --- PROPULSION (4) --- (None) > --- UTILITY (4) ------ Medium Storage Unit Signal Interpreter Salvage Targeting Computer > --- WEAPON (2) ------- (None) > --- INVENTORY (10) --- Flight Unit Flight Unit Flight Unit Flight Unit Flight Unit Flight Unit Sensor Array Improved Sensor Array Hacking Suite Hacking Suite Peak State ------------ > --- POWER ------------ Light Deuterium Engine > --- PROPULSION ------- Aluminum Leg Aluminum Leg Aluminum Leg Aluminum Leg > --- UTILITY ---------- Improved Heat Sink Medium Storage Unit Signal Interpreter Salvage Targeting Computer > --- WEAPON ----------- Improved Light Cannon > --- INVENTORY -------- Flight Unit Flight Unit Flight Unit Flight Unit Flight Unit Flight Unit Sensor Array Hacking Suite Hacking Suite Long-range Tractor Beam [Rating: 17] Favorites ----------- Power Ion Engine Engine Ion Engine Power Core Light Nuclear Core Propulsion Aluminum Leg Leg Aluminum Leg Hover Unit Backup Propulsion I Utility Salvage Targeting Computer Device Improved Heat Sink Storage Small Storage Unit Processor Salvage Targeting Computer Weapon Assault Rifle Energy Gun EM Pulse Gun Energy Cannon Beam Cannon Ballistic Gun Assault Rifle Ballistic Cannon Improved Light Cannon Build | -11 -10 -9 -8 ------- Run | Jun Mat Mat Mat Slots Evolved 4 | . . 2 2 Power . | . . . . Propulsion 2 | . . 2 . Utility 2 | . . . 2 Weapon . | . . . . Parts Attached 39 | 8 10 13 8 Power 8 | 2 1 3 2 Engine 7 | 2 1 2 2 Core 1 | . . 1 . Reactor . | . . . . Propulsion 11 | 2 2 5 2 Treads . | . . . . Leg 11 | 2 2 5 2 Wheel . | . . . . Hover . | . . . . Flight . | . . . . Utility 9 | 2 2 1 4 Device 4 | 1 . . 3 Storage 2 | 1 . 1 . Processor 3 | . 2 . 1 Hackware . | . . . . Protection . | . . . . Artifact . | . . . . Weapon 11 | 2 5 4 . Energy Gun 2 | . 1 1 . Energy Cannon 2 | . 2 . . Ballistic Gun 6 | 2 2 2 . Ballistic Cannon 1 | . . 1 . Launcher . | . . . . Special Weapon . | . . . . Impact Weapon . | . . . . Slashing Weapon . | . . . . Piercing Weapon . | . . . . Special Melee Weapon . | . . . . Unidentified Prototypes . | . . . . Parts Lost 19 | . 3 5 11 Power 3 | . . 1 2 Propulsion 9 | . 1 3 5 Utility 2 | . . . 2 Weapon 5 | . 2 1 2 Highest Loss Streak 6 | . 2 3 6 To Critical Strikes . | . . . . Average Slot Usage (%) 87 | . 94 82 73 Engine 10 | . 14 7 5 Leg 25 | . 23 29 25 Device 1 | . . . 6 Storage 12 | . 14 11 9 Processor 13 | . 13 11 18 Energy Cannon 6 | . 8 6 . Ballistic Gun 12 | . 17 10 2 Ballistic Cannon 2 | . . 3 6 Naked Turns . | . . . . Heaviest Build 23 | 14 15 22 23 Greatest Support 40 | 20 20 40 40 Greatest Overweight (x) 3 | . 1 1 3 Average Overweight (x) . | . . . . Largest Inventory Capacity 10 | 8 8 10 10 Average Capacity 8 | 7 8 8 10 Most Carried 10 | 8 8 10 10 Average Carried 7 | 3 7 8 9 Final Capacity 10 | 8 8 10 10 Final Carried 10 | 6 8 10 10 Class Distribution -------------------- 76% | Mutant 23% | Scavenger-Mutant Dominant Class ---------------- Mutant | -10/Materials Mutant | -9/Materials Scavenger-Mutant | -8/Materials Resources | -11 -10 -9 -8 ----------- Run | Jun Mat Mat Mat Matter Collected 1009 | 313 196 237 263 Remotely 32 | 20 12 . . Salvage Created 1243 | 96 364 504 279 Parts 82 | 1 23 43 15 Haulers Intercepted 1 | . 1 . . Recyclers Shooed 1 | . . . 1 Parts Field Recycled . | . . . . Retrieved Matter . | . . . . Parts Self-Destructed . | . . . . Prevented . | . . . . Kills | -11 -10 -9 -8 ------- Run | Jun Mat Mat Mat Combat Hostiles Destroyed 25 | . 9 11 5 Guns 12 | . 5 7 . Cannons 12 | . 3 4 5 AOE 1 | . 1 . . Classes Destroyed 9 | 1 5 2 1 Worker 1 | . . 1 . Builder 1 | . . . 1 Hauler 1 | . 1 . . Recycler 2 | 1 . . 1 Operator 3 | . 1 1 1 Watcher 5 | . 2 2 1 Swarmer 7 | . 5 2 . Grunt 14 | . 4 5 5 Sentry 4 | . . 4 . Best Kill Streak 4 | 1 3 4 4 Combat Bots Only 4 | . 3 4 3 Max Kills in Single Turn 2 | 1 2 1 1 Gunslinging . | . . . . Exploded 1 | . 1 . . Melee . | . . . . Uniques/NPCs Destroyed . | . . . . Combat | -11 -10 -9 -8 -------- Run | Jun Mat Mat Mat Damage Taken 2837 | . 539 890 1408 Core 843 | . 69 220 554 Absorbed by Shields . | . . . . Regen/Repaired (Parts) 62 | . 62 . . Core Remaining (%) 72 | 100 72 45 . Volleys Fired 124 | 11 41 37 35 Largest 2 | 1 2 2 2 Hottest 100 | 20 100 100 62 Shots Fired 208 | 11 76 73 48 Gun 118 | 11 57 37 13 Cannon 90 | . 19 36 35 Launcher . | . . . . Special . | . . . . Kinetic 157 | 11 52 46 48 Thermal 46 | . 19 27 . Explosive . | . . . . Electromagnetic 5 | . 5 . . Robot Hit Streak 20 | 4 16 20 9 Robot Miss Streak 4 | 1 3 3 4 Penetration Max . | . . . . Secondary Targets 1 | . 1 . . Max Gunslinging Chain 1 | . 1 . . Shots Hit Robots 133 | 8 42 50 33 Core Hits 53 | 2 16 20 15 Critical Kills 1 | . . 1 . Critical Parts Destroyed . | . . . . Critical Strikes 1 | . . 1 . Destroy 1 | . . 1 . Melee Attacks . | . . . . Impact . | . . . . Slashing . | . . . . Piercing . | . . . . Sneak Attacks . | . . . . Combat Hostiles . | . . . . Follow-up Attacks . | . . . . Damage Inflicted 2148 | 96 573 835 644 Guns 912 | 96 330 374 112 Cannons 1233 | . 243 461 529 Explosions . | . . . . Melee . | . . . . Ramming 3 | . . . 3 Kinetic 1490 | 96 260 493 641 Thermal 585 | . 243 342 . Explosive . | . . . . Electromagnetic 70 | . 70 . . Impact . | . . . . Slashing . | . . . . Piercing . | . . . . Highest Corruption 1 | . . 1 . Average Corruption 1 | . . 1 . Corruption Purged . | . . . . Corruption Blocked . | . . . . Effects 5 | . . 5 . Message Errors 2 | . . 2 . Parts Fused 1 | . . 1 . Data Loss (minor) 1 | . . 1 . Weapon Failures 1 | . . 1 . Overload Shots . | . . . . Overflow Damage 15 | . . 3 12 Projectiles 15 | . . 3 12 Explosions . | . . . . Melee . | . . . . Knockbacks 9 | . . . 9 Impact . | . . . . Kinetic 7 | . . . 7 Secondary 2 | . . . 2 Self-Inflicted Damage 1 | . . . 1 Shots . | . . . . Rammed 2 | . . . 2 Targets Rammed 2 | . . . 2 Kicked . | . . . . Crushed . | . . . . Highest Temperature 264 | . 264 102 23 Average Temperature 50 | . 74 32 14 Received Heat Transfer 1236 | . 93 306 837 Siege Activations . | . . . . Robots Corrupted . | . . . . Combat Hostiles . | . . . . Parts Fried . | . . . . Impact Corruptions . | . . . . Robots Melted . | . . . . Combat Hostiles . | . . . . Parts Melted 4 | . 3 1 . Heat Transferred 1246 | . 518 728 . Parts Sabotaged . | . . . . Parts Stolen . | . . . . Parts Stripped . | . . . . Power Chain Reactions . | . . . . Missiles Intercepted . | . . . . Alert | -11 -10 -9 -8 ------- Run | Jun Mat Mat Mat Peak Influence 450 | 5 140 450 333 Initial 196 | . 3 13 196 Average 137 | . 72 221 270 Maximum Alert Level 2 | . . 2 1 Low Security (%) 68 | 100 100 40 1 Level 1 31 | . . 57 98 Level 2 . | . . 2 . Level 3 . | . . . . Level 4 . | . . . . Level 5 . | . . . . High Security . | . . . . Max Security . | . . . . Squads Dispatched 7 | . 2 2 3 Investigation 1 | . 1 . . Extermination . | . . . . Reinforcement 6 | . 1 2 3 Assault . | . . . . Garrison . | . . . . Intercept . | . . . . Searches Triggered . | . . . . Construction Impeded . | . . . . Haulers Reinforced . | . . . . Active Scanning Responses . | . . . . Cargo Convoy Interrupts . | . . . . Stealth | -11 -10 -9 -8 --------- Run | Jun Mat Mat Mat Distress Signals 4 | . . 1 3 Communications Jammed . | . . . . Distress Signals . | . . . . Times Spotted 57 | . 16 25 16 Peak Tracking Total 10 | . 3 6 10 Tactical Retreats 2 | . . 2 . Traps | -11 -10 -9 -8 ------- Run | Jun Mat Mat Mat Traps Triggered 2 | . 1 1 . Indirectly . | . . . . Trap Hack Attempts . | . . . . Triggered . | . . . . Disarmed . | . . . . Reprogrammed . | . . . . Reused . | . . . . Traps Extracted . | . . . . Installed . | . . . . Triggered . | . . . . Machines | -11 -10 -9 -8 ---------- Run | Jun Mat Mat Mat Machines Disabled . | . . . . Max in Single Turn . | . . . . Machines Repaired . | . . . . Machines Sabotaged . | . . . . Overloaded Fab Kills . | . . . . Hacking | -11 -10 -9 -8 --------- Run | Jun Mat Mat Mat Machines Accessed 4 | . 3 1 . Terminals 3 | . 2 1 . Fabricators . | . . . . Repair Stations 1 | . 1 . . Recycling Units . | . . . . Scanalyzers . | . . . . Garrison Access . | . . . . Total Hacks 11 | . 8 3 . Successful 8 | . 6 2 . Failed 3 | . 2 1 . Catastrophic . | . . . . Database Lockouts . | . . . . Manual 7 | . 4 3 . Terminals 7 | . 4 3 . Fabricators . | . . . . Repair Stations 4 | . 4 . . Recycling Units . | . . . . Scanalyzers . | . . . . Garrison Access . | . . . . Terminal Hacks . | . . . . Fabricator Hacks . | . . . . Repair Station Hacks 3 | . 3 . . Scan Component 1 | . 1 . . Repair 1 | . 1 . . Refit 1 | . 1 . . Recycling Unit Hacks . | . . . . Scanalyzer . | . . . . Garrison Access Hacks . | . . . . Unauthorized Hacks 5 | . 3 2 . Terminals 5 | . 3 2 . Botnet 3 | . 2 1 . Operators 2 | . 1 1 . Fabricators . | . . . . Repair Stations . | . . . . Recycling Units . | . . . . Scanalyzers . | . . . . Garrison Access . | . . . . Data Cores Recovered . | . . . . Used . | . . . . Hacking Detections 1 | . 1 . . Full Trace Events . | . . . . Feedback Events . | . . . . Feedback Blocked . | . . . . Robot Schematics Acquired . | . . . . Robots Built . | . . . . Authchips . | . . . . Time . | . . . . Total Robot Build Rating . | . . . . Part Schematics Acquired . | . . . . Parts Built . | . . . . Authchips . | . . . . Time . | . . . . Total Part Build Rating . | . . . . Parts Repaired 1 | . 1 . . Time 26 | . 26 . . Parts Recycled . | . . . . Recycled Matter . | . . . . Retrieved Matter . | . . . . Retrieved Components . | . . . . Parts Scanalyzed . | . . . . Part Schematics Acquired . | . . . . Parts Damaged . | . . . . Bothacking | -11 -10 -9 -8 ------------ Run | Jun Mat Mat Mat Used RIF Installer . | . . . . Robots Hacked . | . . . . Non-combat . | . . . . Combat . | . . . . Robot Hacks Applied . | . . . . Relay Couplers Released . | . . . . Fabnet Peak Effective % . | . . . . Robots Rewired . | . . . . Allies Hacked . | . . . . Hacks Repelled . | . . . . Allies | -11 -10 -9 -8 -------- Run | Jun Mat Mat Mat Total Allies . | . . . . Largest Group . | . . . . Highest-Rated Group . | . . . . Highest-Rated Ally . | . . . . Total Orders . | . . . . Ally Attacks . | . . . . Total Damage . | . . . . Kills . | . . . . Allies Corrupted . | . . . . Allies Melted . | . . . . Intel | -11 -10 -9 -8 ------- Run | Jun Mat Mat Mat Robot Analysis Total . | . . . . Derelict Logs Recovered . | . . . . Drone Launches . | . . . . Drone Recoveries . | . . . . Exploration | -11 -10 -9 -8 ------------- Run | Jun Mat Mat Mat Turns Passed 1733 | 120 902 390 321 Spaces Moved 972 | 72 543 204 153 Core 42 | 13 . . 29 Treads . | . . . . Legs 930 | 59 543 204 124 Wheels . | . . . . Hover . | . . . . Flight . | . . . . Fastest Speed 50 | 50 120 120 120 Average Speed 130 | 107 134 122 137 Slowest Speed 200 | 120 190 190 200 Overloaded Moves . | . . . . Propulsion Burnouts . | . . . . Robots Hopped . | . . . . Cave-ins Triggered . | . . . . Exploration Rate (%) 30 | 6 79 19 18 Regions Visited 3 Branch Regions . Pre-discovered Areas . | . . . . Known Exits Taken . | . . . . Unknown Exits Taken 3 | 1 1 1 . Scrap Searched . | . . . . Spaces Dug . | . . . . Terrain Destroyed 1 | . . 1 . Melee . | . . . . Projectile 1 | . . 1 . AOE . | . . . . Terrain Rammed . | . . . . Walls Destroyed . | . . . . Machines Disabled . | . . . . Actions | -11 -10 -9 -8 --------- Run | Jun Mat Mat Mat Total 1233 | 103 645 270 215 Wait 39 | . 27 6 6 Move 969 | 71 542 203 153 Hop . | . . . . Pick Up 35 | 13 11 4 7 Fast Attach 15 | . 7 8 . Attach 14 | 7 1 1 5 Detach . | . . . . Swap 10 | 1 2 4 3 Drop 25 | . 14 7 4 Fire 124 | 11 41 37 35 Melee . | . . . . Ram 2 | . . . 2 Kick . | . . . . Crush . | . . . . Escape Stasis . | . . . . Rewire . | . . . . Trap . | . . . . Miscellaneous . | . . . . Route ------- -11/Junkyard -10/Materials (discovered 3 exits: *Mat x2 / [*Min]) -9/Materials -8/Materials History --------- Turn | Location | Event 3 | -11/Junkyard | Discovered new exit (range 15) 121 | -11/Junkyard | Entered Materials 172 | -10/Materials | Discovered new exit (range 15) 314 | -10/Materials | Build established: Mutant 386 | -10/Materials | Discovered new exit (range 8) 696 | -10/Materials | Discovered new exit (range 4) 808 | -10/Materials | Repaired Aluminum Leg 1023 | -10/Materials | Entered another Materials area 1023 | -9/Materials | Evolved 2 slots: Propulsion x2 1276 | -9/Materials | Lost 3 parts (2n1w) 1400 | -9/Materials | Discovered new exit (range 6) 1402 | -9/Materials | Core integrity fell below 50% 1413 | -9/Materials | Entered another Materials area 1413 | -8/Materials | Evolved 2 slots: Utility x2 1532 | -8/Materials | Lost 4 parts (1p1n1u1w) 1699 | -8/Materials | Core integrity fell below 50% 1718 | -8/Materials | Lost 6 parts (1p3n1u1w) 1726 | -8/Materials | Core integrity fell below 20% 1734 | -8/Materials | Destroyed by G-47 Trooper with Particle Gun Last Messages --------------- 01603_ G-47 Trooper knocked back. 01609_ G-47 Trooper destroyed. 01611_ G-47 Trooper knocked back. 01615_ G-47 Trooper destroyed. 01617_ Acquired 32 matter. 01618_ K-01 Serf collects debris. 01620_ Acquired 2 matter. 01622_ K-01 Serf collects debris. 01626_ Acquired 1 matter. 01626_ G-47 Trooper suffers critical hit (Burn). 01626_ K-01 Serf collects debris. 01647_ Aluminum Leg destroyed. 01649_ Imp. Light Cannon destroyed. 01650_ Lgt. Deuterium Engine destroyed. 01661_ Aluminum Leg destroyed. 01679_ Critical hit (Burn: +37). 01687_ Imp. Heat Sink destroyed. 01691_ Slammed into A-02 Transporter. 01699_ Slammed into O-16 Technician. 01721_ Critical hit (Burn: +37). Map ----- +----------------------------------------------------+ | ????????????????????????????? ???????????????? | | ????????????????????????????? ???????????????? | | ?????????????????????????????# #??????########?? | | ?????????????????????????????# #??????# ! #?? | | ?????????????????????????????# #??????# #?? | | ?????????????????????????????# #??????# """ #?? | | ?????????????????????????????# #??????# """ #?? | | ?????????????????????????????# #??????# """ #?? | | ????????????????????????????## ##??????? #?? | | ????????????????????????????# ##########+#+## | | ????????????????????????????# # | | ????????????????????????????# + | | ????????????????????????????# # | | ????????????????????????????# ## ^^ #! | | ????????????????????????????######## ^ #? | | ???????????????????????????????????# % #? | | ???????????????????????????????????# ############? | | ???????????????????????????????????# #???????????? | | ???????????????????????????????????#%#???????????? | | ???????????????????????????????????# ###########?? | | ???????????????????????????????????# ## #?? | | ?????????????#?????????????????????# ## """#?? | | ???????????### ################### ##% """#?? | | ?????????? k ag Ya%%# """#?? | | ?????????? g o g %%+ #?? | | ?????????? o @ g #! """#?? | | ??????????????######+#+##############+# """#?? | | ????????????????????????????# %%# """#?? | | ????????????????????????????# # #?? | | ????????????????????????????# = ##########?? | | ????????????????????????????# ""T"" #??????????? | | ????????????????????????????# """"" #??????????? | | ????????????????????????????# #??????????? | | ????????????????????????????######+####??????????? | | ???????????????????????????????# #???????????? | | ???????????????????????????????# #???????????? | | ???????????????????????????????# =* #???????????? | | ???????????????????????????????# #???????????? | | ???????????????????????????????# #???????????? | | ???????????????????????????????## ##???????????? | | ????????????????????????????????# #????????????? | | ????????????????????????????????# #????????????? | | ????????????????????????????????# #????????????? | | ????????????????????????????????# #????????????? | | ????????????????????????????????# #????????????? | | ???????????????????????????????## ##?????####### | | ???????????????????????????????# #######! # | | ???????????????????????????????# | | ???????????????????????????????# T | | ???????????????????????????????# | +----------------------------------------------------+ Best States ------------- Heat Dissipation 45 Energy Generation 14 Energy Capacity 250 Matter Stores 300 Matter Capacity 300 Sight Range 18 Terrain Scan Density 10 Evasion (%) 55 Salvage Targeting 1 Item Schematics ----------------- None Robot Schematics ------------------ None Fabricated ------------ Nothing Alien Tech Used ----------------- None Achievements -------------- None Challenges ------------ None Game ------ Seed LaserShadingFirepult Manual? 0 Play Time 00:20:51 Cumulative 51.7 hours Start 2023.06.03 @ 18:13:50 End 2023.06.03 @ 19:21:21 Sessions 3 Manual Loads 0 Difficulty Rogue Special Mode None Game No. 66 Rogue 50 Adventurer 9 Explorer 7 Win Type - Total 4 Types 4/0/0/0/0/0/0/0/0 Lore% 13 Gallery% 39 Achievement% 28 Wizard Run 0 Options --------- ASCII 0 Keyboard 0 Movement Mouse Keybinds 0 Fullscreen 1 Font 32/Terminus Map View 63x52 Tactical HUD 1 Map Filters NONE Filters NONE Steam 1 RUN: f3a639d7-43d3-4ed7-8b82-ae72f157ce94